[Event "*** Titled Tuesday Blitz"]
[Site "Chess.com"]
[Date "2021.04.27"]
[Round "2"]
[White "1977Ivan"]
[Black "AEMEffi"]
[Result "0-1"]
[WhiteElo "2658"]
[BlackElo "2333"]
[TimeControl "180+1"]
[EndTime "10:20:06 PDT"]
[Termination "AEMEffi won on time"]

1. d4 {[%clk 0:03:00.9]} 1... d5 {[%clk 0:02:59.6]} 2. c4 {[%clk 0:03:01]} 2...
c6 {[%clk 0:03:00.5]} 3. cxd5 {[%clk 0:02:55.5]} 3... cxd5 {[%clk 0:03:01.4]} 4.
Nc3 {[%clk 0:02:47.8]} 4... Nf6 {[%clk 0:03:02.3]} 5. Bg5 {[%clk 0:02:46.3]}
5... Nc6 {[%clk 0:03:03]} 6. Bxf6 {[%clk 0:02:45.9]} 6... exf6 {[%clk
0:03:03.6]} 7. e3 {[%clk 0:02:46.4]} 7... Be7 {[%clk 0:02:52.6]} 8. g3 {[%clk
0:02:45.4]} 8... Be6 {[%clk 0:02:51.1]} 9. Bg2 {[%clk 0:02:45.6]} 9... O-O
{[%clk 0:02:49.9]} 10. Nge2 {[%clk 0:02:45.6]} 10... Qd7 {[%clk 0:02:31.1]} 11.
Nf4 {[%clk 0:02:44.7]} 11... Bb4 {[%clk 0:02:30.3]} 12. Rc1 {[%clk 0:02:40.3]}
12... Rac8 {[%clk 0:02:26.3]} 13. O-O {[%clk 0:02:39.7]} 13... Bxc3 {[%clk
0:02:14]} 14. Rxc3 {[%clk 0:02:40.6]} 14... Ne7 {[%clk 0:02:11.8]} 15. Qb3
{[%clk 0:02:19.9]} 15... Rxc3 {[%clk 0:02:01.4]} 16. Qxc3 {[%clk 0:02:20.8]}
16... Rc8 {[%clk 0:01:59.6]} 17. Qb3 {[%clk 0:02:16.5]} 17... b6 {[%clk
0:01:46.7]} 18. h4 {[%clk 0:02:13.8]} 18... h6 {[%clk 0:01:16.1]} 19. Re1 {[%clk
0:02:08.8]} 19... f5 {[%clk 0:01:12.8]} 20. Bf3 {[%clk 0:01:59.4]} 20... g6
{[%clk 0:01:09.1]} 21. Be2 {[%clk 0:01:46.5]} 21... Rc7 {[%clk 0:01:06.8]} 22.
Kg2 {[%clk 0:01:38.6]} 22... Kg7 {[%clk 0:01:04.9]} 23. Bb5 {[%clk 0:01:32.6]}
23... Qc8 {[%clk 0:01:04.6]} 24. Qa3 {[%clk 0:01:33]} 24... Qd8 {[%clk
0:00:55.8]} 25. b3 {[%clk 0:01:25.4]} 25... Nc8 {[%clk 0:00:48.6]} 26. Rc1
{[%clk 0:01:17.7]} 26... Nd6 {[%clk 0:00:48.2]} 27. Be2 {[%clk 0:01:14.5]} 27...
Ne4 {[%clk 0:00:36.2]} 28. Bf3 {[%clk 0:00:46.6]} 28... Nf6 {[%clk 0:00:22.4]}
29. Nd3 {[%clk 0:00:44.9]} 29... Qc8 {[%clk 0:00:21.2]} 30. Rxc7 {[%clk
0:00:39.2]} 30... Qxc7 {[%clk 0:00:22.1]} 31. Qc1 {[%clk 0:00:37.2]} 31... Qxc1
{[%clk 0:00:18.5]} 32. Nxc1 {[%clk 0:00:38.1]} 32... Ne4 {[%clk 0:00:18]} 33.
Nd3 {[%clk 0:00:37]} 33... Nc3 {[%clk 0:00:17.6]} 34. a4 {[%clk 0:00:35.5]}
34... f6 {[%clk 0:00:14.8]} 35. Kf1 {[%clk 0:00:34.4]} 35... Kf7 {[%clk
0:00:14.4]} 36. Ke1 {[%clk 0:00:34.1]} 36... Ke7 {[%clk 0:00:10.7]} 37. Nf4
{[%clk 0:00:30.3]} 37... Bf7 {[%clk 0:00:08.7]} 38. Nd3 {[%clk 0:00:23.1]} 38...
Ne4 {[%clk 0:00:08.6]} 39. b4 {[%clk 0:00:20.4]} 39... g5 {[%clk 0:00:08.1]} 40.
Bd1 {[%clk 0:00:18.8]} 40... g4 {[%clk 0:00:07.4]} 41. Bb3 {[%clk 0:00:18.3]}
41... Kd6 {[%clk 0:00:06.9]} 42. Nf4 {[%clk 0:00:17.4]} 42... Nc3 {[%clk
0:00:04.8]} 43. Bc2 {[%clk 0:00:15.7]} 43... Ne4 {[%clk 0:00:05.7]} 44. Bxe4
{[%clk 0:00:14.4]} 44... fxe4 {[%clk 0:00:06.6]} 45. Kd2 {[%clk 0:00:14.4]}
45... f5 {[%clk 0:00:07.1]} 46. Kc3 {[%clk 0:00:14.1]} 46... a5 {[%clk
0:00:07.2]} 47. Kb3 {[%clk 0:00:12.8]} 47... Kc6 {[%clk 0:00:06.7]} 48. Ne2
{[%clk 0:00:12.3]} 48... Kd6 {[%clk 0:00:06.7]} 49. Nc3 {[%clk 0:00:12.6]} 49...
Kc6 {[%clk 0:00:07.2]} 50. Nb5 {[%clk 0:00:12.7]} 50... Be6 {[%clk 0:00:06.8]}
51. Na7+ {[%clk 0:00:11.6]} 51... Kb7 {[%clk 0:00:07.1]} 52. Nb5 {[%clk
0:00:12]} 52... Kc6 {[%clk 0:00:07.6]} 53. Nc3 {[%clk 0:00:12.2]} 53... Bf7
{[%clk 0:00:06.9]} 54. Na2 {[%clk 0:00:11.9]} 54... Be6 {[%clk 0:00:06.9]} 55.
Ka3 {[%clk 0:00:11.9]} 55... Kd6 {[%clk 0:00:06.8]} 56. Nc1 {[%clk 0:00:12.2]}
56... Kc6 {[%clk 0:00:07.1]} 57. Nb3 {[%clk 0:00:12.3]} 57... axb4+ {[%clk
0:00:05.5]} 58. Kxb4 {[%clk 0:00:13.2]} 58... Bd7 {[%clk 0:00:05.1]} 59. a5
{[%clk 0:00:13]} 59... bxa5+ {[%clk 0:00:05.1]} 60. Kxa5 {[%clk 0:00:13.9]}
60... Be6 {[%clk 0:00:03.1]} 61. Nc5 {[%clk 0:00:11.6]} 61... Bf7 {[%clk
0:00:04]} 62. Ka6 {[%clk 0:00:11.4]} 62... h5 {[%clk 0:00:04.2]} 63. Ka7 {[%clk
0:00:11.4]} 63... Kc7 {[%clk 0:00:04.4]} 64. Na6+ {[%clk 0:00:09.5]} 64... Kc6
{[%clk 0:00:04.6]} 65. Kb8 {[%clk 0:00:09.6]} 65... Kb5 {[%clk 0:00:04.8]} 66.
Nc5 {[%clk 0:00:09.4]} 66... Kc4 {[%clk 0:00:05]} 67. Kc7 {[%clk 0:00:09.7]}
67... Kc3 {[%clk 0:00:05.5]} 68. Kd6 {[%clk 0:00:09.6]} 68... Kd2 {[%clk
0:00:06.4]} 69. Ke5 {[%clk 0:00:09.5]} 69... Ke2 {[%clk 0:00:06.3]} 70. Kxf5
{[%clk 0:00:09.6]} 70... Kxf2 {[%clk 0:00:07]} 71. Kf4 {[%clk 0:00:10.1]} 71...
Kg2 {[%clk 0:00:06.5]} 72. Nd7 {[%clk 0:00:10.4]} 72... Kf2 {[%clk 0:00:06.6]}
73. Ne5 {[%clk 0:00:10.7]} 73... Be8 {[%clk 0:00:07.1]} 74. Kf5 {[%clk
0:00:04.4]} 74... Kxe3 {[%clk 0:00:08]} 75. Ke6 {[%clk 0:00:03.6]} 75... Kxd4
{[%clk 0:00:08.9]} 76. Kd6 {[%clk 0:00:01.9]} 76... e3 {[%clk 0:00:09]} 0-1

[Event "*** Titled Tuesday Blitz"]
[Site "Chess.com"]
[Date "2021.04.27"]
[Round "2"]
[White "UmbertoConcelli"]
[Black "serhanberat_ozdemir"]
[Result "1/2-1/2"]
[WhiteElo "2827"]
[BlackElo "2568"]
[TimeControl "180+1"]
[EndTime "10:20:11 PDT"]
[Termination "Game drawn - insufficient material"]

1. d4 {[%clk 0:03:00.9]} 1... Nf6 {[%clk 0:03:00.2]} 2. c4 {[%clk 0:03:00.9]}
2... g6 {[%clk 0:03:00.8]} 3. Nc3 {[%clk 0:03:00.5]} 3... Bg7 {[%clk 0:03:01.5]}
4. Nf3 {[%clk 0:02:59.7]} 4... O-O {[%clk 0:03:01]} 5. g3 {[%clk 0:03:00]} 5...
d6 {[%clk 0:03:01.3]} 6. Bg2 {[%clk 0:03:00.4]} 6... c6 {[%clk 0:03:01.9]} 7.
O-O {[%clk 0:03:01.1]} 7... Qa5 {[%clk 0:03:02.6]} 8. e4 {[%clk 0:03:01.1]} 8...
e5 {[%clk 0:03:02.4]} 9. h3 {[%clk 0:03:00.7]} 9... Re8 {[%clk 0:03:01.9]} 10.
Be3 {[%clk 0:03:00.1]} 10... Nbd7 {[%clk 0:02:58]} 11. d5 {[%clk 0:03:00]} 11...
cxd5 {[%clk 0:02:53.2]} 12. cxd5 {[%clk 0:02:59.7]} 12... b5 {[%clk 0:02:48.1]}
13. a3 {[%clk 0:02:52.4]} 13... a6 {[%clk 0:02:21.6]} 14. Nd2 {[%clk 0:02:51.2]}
14... Bb7 {[%clk 0:02:20.1]} 15. b4 {[%clk 0:02:48.3]} 15... Qd8 {[%clk
0:02:18.4]} 16. Nb3 {[%clk 0:02:47.8]} 16... Rc8 {[%clk 0:02:14]} 17. Rc1 {[%clk
0:02:47]} 17... Nb6 {[%clk 0:02:02.4]} 18. Na5 {[%clk 0:02:46.5]} 18... Ba8
{[%clk 0:02:01.1]} 19. a4 {[%clk 0:02:41.8]} 19... Nc4 {[%clk 0:01:47.5]} 20.
Nxc4 {[%clk 0:02:27.2]} 20... Rxc4 {[%clk 0:01:44.8]} 21. Qb3 {[%clk 0:02:19.7]}
21... Qd7 {[%clk 0:01:39.8]} 22. Rfd1 {[%clk 0:02:15]} 22... Rec8 {[%clk
0:01:39.6]} 23. Bf1 {[%clk 0:02:14.2]} 23... Rxc3 {[%clk 0:01:21.7]} 24. Rxc3
{[%clk 0:02:13.3]} 24... Rxc3 {[%clk 0:01:22.2]} 25. Qxc3 {[%clk 0:02:12.7]}
25... Nxe4 {[%clk 0:01:22.8]} 26. Qc2 {[%clk 0:01:56.1]} 26... f5 {[%clk
0:01:21.6]} 27. axb5 {[%clk 0:01:55.6]} 27... axb5 {[%clk 0:01:22.4]} 28. Qa2
{[%clk 0:01:50.5]} 28... Bb7 {[%clk 0:00:46.4]} 29. Qa7 {[%clk 0:01:22]} 29...
Bf8 {[%clk 0:00:41.3]} 30. Rc1 {[%clk 0:01:10.9]} 30... f4 {[%clk 0:00:40.7]}
31. gxf4 {[%clk 0:01:10.4]} 31... exf4 {[%clk 0:00:40.7]} 32. Bxf4 {[%clk
0:01:10.7]} 32... Qf5 {[%clk 0:00:39.6]} 33. Qe3 {[%clk 0:01:03]} 33... g5
{[%clk 0:00:29.4]} 34. Bg3 {[%clk 0:00:49.8]} 34... Qxd5 {[%clk 0:00:30]} 35.
Bg2 {[%clk 0:00:48.6]} 35... Qf5 {[%clk 0:00:28.4]} 36. Rc7 {[%clk 0:00:37.6]}
36... Bd5 {[%clk 0:00:28.5]} 37. Qd4 {[%clk 0:00:34.3]} 37... Qe6 {[%clk
0:00:23.3]} 38. Kh2 {[%clk 0:00:26.6]} 38... h5 {[%clk 0:00:22.1]} 39. Bxe4
{[%clk 0:00:20]} 39... Qxe4 {[%clk 0:00:18.3]} 40. Qxe4 {[%clk 0:00:17.9]} 40...
Bxe4 {[%clk 0:00:19.1]} 41. h4 {[%clk 0:00:17.3]} 41... g4 {[%clk 0:00:17.9]}
42. Rd7 {[%clk 0:00:16.4]} 42... d5 {[%clk 0:00:17.1]} 43. Bd6 {[%clk
0:00:16.3]} 43... Bg7 {[%clk 0:00:16.1]} 44. Bc5 {[%clk 0:00:15.2]} 44... Be5+
{[%clk 0:00:14.9]} 45. Kg1 {[%clk 0:00:15.4]} 45... Bf6 {[%clk 0:00:13.1]} 46.
Be7 {[%clk 0:00:15.4]} 46... Bd4 {[%clk 0:00:09.8]} 47. Kf1 {[%clk 0:00:11.7]}
47... Bd3+ {[%clk 0:00:07.8]} 48. Ke1 {[%clk 0:00:11.6]} 48... Bc3+ {[%clk
0:00:08.3]} 49. Kd1 {[%clk 0:00:11.4]} 49... d4 {[%clk 0:00:09]} 50. Rd5 {[%clk
0:00:10.3]} 50... Bc4 {[%clk 0:00:08.6]} 51. Rxh5 {[%clk 0:00:09.8]} 51... d3
{[%clk 0:00:07.8]} 52. Bg5 {[%clk 0:00:07.4]} 52... Bb3+ {[%clk 0:00:07]} 53.
Kc1 {[%clk 0:00:07.3]} 53... Bxb4 {[%clk 0:00:07.2]} 54. Bd2 {[%clk 0:00:06.4]}
54... Ba3+ {[%clk 0:00:06.9]} 55. Kb1 {[%clk 0:00:06.6]} 55... Bc2+ {[%clk
0:00:07.4]} 56. Ka2 {[%clk 0:00:06.9]} 56... b4 {[%clk 0:00:08.3]} 57. Rg5+
{[%clk 0:00:07]} 57... Kf7 {[%clk 0:00:08.3]} 58. Rb5 {[%clk 0:00:05.6]} 58...
Bd1 {[%clk 0:00:03.4]} 59. Bxb4 {[%clk 0:00:02.6]} 59... Bxb4 {[%clk 0:00:04.3]}
60. Rxb4 {[%clk 0:00:03.5]} 60... Be2 {[%clk 0:00:05.2]} 61. Rd4 {[%clk
0:00:02.6]} 61... Kg6 {[%clk 0:00:06.1]} 62. Kb2 {[%clk 0:00:02.8]} 62... Kh5
{[%clk 0:00:06.8]} 63. Kc3 {[%clk 0:00:02.7]} 63... Kxh4 {[%clk 0:00:07.5]} 64.
Kd2 {[%clk 0:00:02.8]} 64... Kg5 {[%clk 0:00:07.5]} 65. Ke3 {[%clk 0:00:02.9]}
65... Kf5 {[%clk 0:00:08.1]} 66. Rd5+ {[%clk 0:00:02.6]} 66... Ke6 {[%clk
0:00:08.3]} 67. Rd4 {[%clk 0:00:03.5]} 67... Ke5 {[%clk 0:00:08.3]} 68. Rxd3
{[%clk 0:00:03.6]} 68... Bxd3 {[%clk 0:00:08.1]} 69. Kxd3 {[%clk 0:00:04.5]}
69... Kf4 {[%clk 0:00:09]} 70. Ke2 {[%clk 0:00:05.4]} 70... Ke4 {[%clk
0:00:09.7]} 71. Kf1 {[%clk 0:00:05.5]} 71... Kf3 {[%clk 0:00:10.4]} 72. Kg1
{[%clk 0:00:05.6]} 72... g3 {[%clk 0:00:11.3]} 73. fxg3 {[%clk 0:00:06.5]} 73...
Kxg3 {[%clk 0:00:12.2]} 1/2-1/2

[Event "*** Titled Tuesday Blitz"]
[Site "Chess.com"]
[Date "2021.04.27"]
[Round "2"]
[White "playablecharacter"]
[Black "WildBizon"]
[Result "0-1"]
[WhiteElo "2295"]
[BlackElo "2609"]
[TimeControl "180+1"]
[EndTime "10:20:20 PDT"]
[Termination "WildBizon won by resignation"]

1. d4 {[%clk 0:02:56.1]} 1... Nf6 {[%clk 0:02:54.4]} 2. Bg5 {[%clk 0:02:53.3]}
2... g6 {[%clk 0:02:53.8]} 3. Bxf6 {[%clk 0:02:51.2]} 3... exf6 {[%clk
0:02:54.2]} 4. e3 {[%clk 0:02:50.6]} 4... d5 {[%clk 0:02:52.3]} 5. c4 {[%clk
0:02:49.3]} 5... c6 {[%clk 0:02:51.9]} 6. Nc3 {[%clk 0:02:42.2]} 6... Bg7 {[%clk
0:02:48.2]} 7. Nh3 {[%clk 0:02:30]} 7... Bxh3 {[%clk 0:02:37.8]} 8. gxh3 {[%clk
0:02:30.9]} 8... dxc4 {[%clk 0:02:38.3]} 9. Bxc4 {[%clk 0:02:29.7]} 9... O-O
{[%clk 0:02:38.1]} 10. h4 {[%clk 0:02:22.9]} 10... h5 {[%clk 0:02:34.2]} 11. Ne4
{[%clk 0:02:15.8]} 11... Re8 {[%clk 0:02:29.7]} 12. Ng3 {[%clk 0:02:14.3]} 12...
f5 {[%clk 0:02:28.4]} 13. Qb3 {[%clk 0:02:04.6]} 13... Qa5+ {[%clk 0:02:24]} 14.
Qc3 {[%clk 0:01:55.1]} 14... Qxc3+ {[%clk 0:02:05.7]} 15. bxc3 {[%clk 0:01:56]}
15... Nd7 {[%clk 0:02:06.1]} 16. Rg1 {[%clk 0:01:52.4]} 16... Kf8 {[%clk
0:02:04.7]} 17. O-O-O {[%clk 0:01:43.1]} 17... Bf6 {[%clk 0:02:02.7]} 18. Rg2
{[%clk 0:01:40.7]} 18... Bxh4 {[%clk 0:02:01.9]} 19. Rdg1 {[%clk 0:01:41.1]}
19... a5 {[%clk 0:01:53.4]} 20. Ne2 {[%clk 0:01:25.7]} 20... Nb6 {[%clk
0:01:40.7]} 21. Bb3 {[%clk 0:01:22.1]} 21... a4 {[%clk 0:01:40.4]} 22. Bc2
{[%clk 0:01:20.1]} 22... Nd5 {[%clk 0:01:39.3]} 23. a3 {[%clk 0:01:15.8]} 23...
b5 {[%clk 0:01:38.6]} 24. Kd2 {[%clk 0:01:06.8]} 24... c5 {[%clk 0:01:34.1]} 25.
dxc5 {[%clk 0:01:00.6]} 25... Rec8 {[%clk 0:01:27.5]} 26. e4 {[%clk 0:00:52.6]}
26... fxe4 {[%clk 0:01:27]} 27. Bxe4 {[%clk 0:00:53.3]} 27... Rxc5 {[%clk
0:01:27.5]} 28. Nd4 {[%clk 0:00:38.4]} 28... Rd8 {[%clk 0:01:19]} 29. Bxd5
{[%clk 0:00:37.2]} 29... Rcxd5 {[%clk 0:01:19.3]} 30. f4 {[%clk 0:00:37]} 30...
Bf6 {[%clk 0:01:18.7]} 31. f5 {[%clk 0:00:33.3]} 31... Bxd4 {[%clk 0:01:18.7]}
32. cxd4 {[%clk 0:00:33.7]} 32... Rxf5 {[%clk 0:01:19.3]} 33. Kc3 {[%clk
0:00:28.4]} 33... Rf3+ {[%clk 0:01:15.6]} 34. Kb4 {[%clk 0:00:28]} 34... Rxd4+
{[%clk 0:01:13.7]} 35. Kxb5 {[%clk 0:00:26.8]} 35... Rxa3 {[%clk 0:01:13.8]} 36.
Rf1 {[%clk 0:00:24.8]} 36... Rb3+ {[%clk 0:01:11.9]} 37. Kc5 {[%clk 0:00:23.9]}
37... Rg4 {[%clk 0:01:11.9]} 38. Rgf2 {[%clk 0:00:23.1]} 38... Rb7 {[%clk
0:01:10.1]} 39. Kc6 {[%clk 0:00:21.9]} 39... Rgb4 {[%clk 0:01:06.7]} 40. Ra2
{[%clk 0:00:17]} 40... R4b6+ {[%clk 0:01:04.9]} 41. Kc5 {[%clk 0:00:17]} 41...
Ra6 {[%clk 0:01:04]} 42. Rfa1 {[%clk 0:00:16.2]} 42... Kg7 {[%clk 0:01:01.1]}
43. Ra3 {[%clk 0:00:16.3]} 43... h4 {[%clk 0:00:59.5]} 44. h3 {[%clk 0:00:16.5]}
44... g5 {[%clk 0:00:59.2]} 45. Kd5 {[%clk 0:00:16.6]} 45... Kg6 {[%clk
0:00:59.4]} 46. Ke5 {[%clk 0:00:16.7]} 46... Ra5+ {[%clk 0:00:58.9]} 47. Kd6
{[%clk 0:00:16.8]} 47... Rb6+ {[%clk 0:00:58.5]} 48. Kc7 {[%clk 0:00:17.2]}
48... Re6 {[%clk 0:00:58.5]} 49. Kd7 {[%clk 0:00:17.1]} 49... Ra7+ {[%clk
0:00:58.3]} 50. Kd8 {[%clk 0:00:16.6]} 50... Rb6 {[%clk 0:00:56.5]} 51. Kc8
{[%clk 0:00:17]} 51... Re6 {[%clk 0:00:55.4]} 52. Kb8 {[%clk 0:00:17.9]} 52...
Ra5 {[%clk 0:00:50.5]} 53. Kb7 {[%clk 0:00:17.4]} 53... Rf6 {[%clk 0:00:48.5]}
54. Kc7 {[%clk 0:00:17.3]} 54... Rf4 {[%clk 0:00:47.1]} 55. Kb6 {[%clk
0:00:18.2]} 55... Re5 {[%clk 0:00:45.6]} 56. Kc6 {[%clk 0:00:17.8]} 56... Ree4
{[%clk 0:00:45.3]} 57. Kd6 {[%clk 0:00:18.7]} 57... f6 {[%clk 0:00:44.1]} 58.
Kd5 {[%clk 0:00:19.6]} 58... Rb4 {[%clk 0:00:44.1]} 59. Kd6 {[%clk 0:00:19.9]}
59... Rb3 {[%clk 0:00:44.4]} 60. Kd5 {[%clk 0:00:20.8]} 60... Rxa3 {[%clk
0:00:41.2]} 61. Rxa3 {[%clk 0:00:21.7]} 61... f5 {[%clk 0:00:40.9]} 62. Ke5
{[%clk 0:00:21.2]} 62... Re4+ {[%clk 0:00:41.2]} 63. Kd5 {[%clk 0:00:20.9]}
63... Kf6 {[%clk 0:00:41.7]} 64. Rc3 {[%clk 0:00:20.4]} 64... Re6 {[%clk
0:00:39.6]} 65. Ra3 {[%clk 0:00:18.8]} 65... Ra6 {[%clk 0:00:39.6]} 66. Kc5
{[%clk 0:00:18.8]} 66... Ra8 {[%clk 0:00:39.8]} 67. Kd6 {[%clk 0:00:18.3]} 67...
g4 {[%clk 0:00:39.7]} 68. hxg4 {[%clk 0:00:17.9]} 68... fxg4 {[%clk 0:00:40.6]}
69. Kd5 {[%clk 0:00:18.3]} 69... Kf5 {[%clk 0:00:40.4]} 70. Kd4 {[%clk
0:00:17.7]} 70... Kf4 {[%clk 0:00:40.9]} 71. Kd3 {[%clk 0:00:18.2]} 71... Kg3
{[%clk 0:00:38.6]} 72. Kc4+ {[%clk 0:00:17.8]} 72... Kh2 {[%clk 0:00:37.5]} 73.
Ra2+ {[%clk 0:00:16.7]} 73... Kh3 {[%clk 0:00:37.8]} 74. Kd3 {[%clk 0:00:12.4]}
74... g3 {[%clk 0:00:37.5]} 75. Ke2 {[%clk 0:00:13.3]} 75... a3 {[%clk 0:00:38]}
76. Kf1 {[%clk 0:00:13.6]} 76... Rf8+ {[%clk 0:00:36.4]} 77. Kg1 {[%clk
0:00:14]} 77... Rf3 {[%clk 0:00:34.1]} 78. Ra1 {[%clk 0:00:12.3]} 78... Rb3
{[%clk 0:00:33]} 79. Kf1 {[%clk 0:00:08.5]} 79... Kg4 {[%clk 0:00:31]} 80. Kg2
{[%clk 0:00:07.8]} 80... Rb2+ {[%clk 0:00:31]} 81. Kg1 {[%clk 0:00:08.7]} 81...
a2 {[%clk 0:00:31.2]} 82. Re1 {[%clk 0:00:03.6]} 82... Rb1 {[%clk 0:00:31]} 83.
Kg2 {[%clk 0:00:03.6]} 83... h3+ {[%clk 0:00:27.2]} 84. Kf1 {[%clk 0:00:03]}
84... Rxe1+ {[%clk 0:00:27.2]} 85. Kxe1 {[%clk 0:00:03.9]} 85... a1=Q+ {[%clk
0:00:28.1]} 86. Ke2 {[%clk 0:00:04.7]} 86... Qb2+ {[%clk 0:00:27.5]} 87. Kd3
{[%clk 0:00:05.6]} 0-1

[Event "*** Titled Tuesday Blitz"]
[Site "Chess.com"]
[Date "2021.04.27"]
[Round "2"]
[White "IngOscarArdila"]
[Black "NoboaKevin1999"]
[Result "1-0"]
[WhiteElo "2256"]
[BlackElo "2436"]
[TimeControl "180+1"]
[EndTime "10:20:30 PDT"]
[Termination "IngOscarArdila won on time"]

1. d4 {[%clk 0:03:00.9]} 1... Nf6 {[%clk 0:02:57.5]} 2. c4 {[%clk 0:03:00.5]}
2... e6 {[%clk 0:02:57.5]} 3. Bd2 {[%clk 0:03:00]} 3... c5 {[%clk 0:02:56.9]} 4.
dxc5 {[%clk 0:02:58.4]} 4... Bxc5 {[%clk 0:02:56.8]} 5. Nf3 {[%clk 0:02:58.8]}
5... O-O {[%clk 0:02:55.5]} 6. Qc2 {[%clk 0:02:58.2]} 6... Nc6 {[%clk
0:02:54.9]} 7. Nc3 {[%clk 0:02:57.2]} 7... b6 {[%clk 0:02:54.6]} 8. Bg5 {[%clk
0:02:53.4]} 8... Bb7 {[%clk 0:02:53.9]} 9. a3 {[%clk 0:02:49.8]} 9... Rc8 {[%clk
0:02:53.6]} 10. e3 {[%clk 0:02:47.9]} 10... Be7 {[%clk 0:02:52.7]} 11. Bd3
{[%clk 0:02:45.4]} 11... h6 {[%clk 0:02:51.8]} 12. Bh4 {[%clk 0:02:43.8]} 12...
Na5 {[%clk 0:02:50]} 13. Qe2 {[%clk 0:02:41.5]} 13... Bxf3 {[%clk 0:02:36.8]}
14. gxf3 {[%clk 0:02:41.5]} 14... d5 {[%clk 0:02:36.5]} 15. cxd5 {[%clk
0:02:39.7]} 15... Nxd5 {[%clk 0:02:36.2]} 16. Bxe7 {[%clk 0:02:31.1]} 16... Qxe7
{[%clk 0:02:34]} 17. Ne4 {[%clk 0:02:23.4]} 17... Rfd8 {[%clk 0:02:23.2]} 18.
O-O {[%clk 0:02:21.4]} 18... f5 {[%clk 0:02:08.4]} 19. Ng3 {[%clk 0:02:16.8]}
19... Qh4 {[%clk 0:02:03.9]} 20. Rad1 {[%clk 0:02:07.5]} 20... f4 {[%clk
0:01:50.6]} 21. Ne4 {[%clk 0:02:05.4]} 21... fxe3 {[%clk 0:01:49.4]} 22. fxe3
{[%clk 0:02:05.2]} 22... Kh8 {[%clk 0:01:44.7]} 23. Kh1 {[%clk 0:02:03.3]} 23...
Rf8 {[%clk 0:01:40.8]} 24. Rg1 {[%clk 0:02:01.8]} 24... Rc7 {[%clk 0:01:40.2]}
25. Rg4 {[%clk 0:01:58.8]} 25... Qh3 {[%clk 0:01:39.7]} 26. Rg3 {[%clk
0:01:56.9]} 26... Qh5 {[%clk 0:01:39.1]} 27. Rdg1 {[%clk 0:01:55.7]} 27... Rcf7
{[%clk 0:01:38.6]} 28. f4 {[%clk 0:01:51.1]} 28... Qxe2 {[%clk 0:01:33.5]} 29.
Bxe2 {[%clk 0:01:47.5]} 29... Nb3 {[%clk 0:01:25.9]} 30. Bc4 {[%clk 0:01:11.3]}
30... Nc5 {[%clk 0:01:21]} 31. Bxd5 {[%clk 0:01:09.6]} 31... exd5 {[%clk
0:01:20]} 32. Nd6 {[%clk 0:01:09.8]} 32... Rd7 {[%clk 0:01:16]} 33. Nb5 {[%clk
0:01:08]} 33... Ne4 {[%clk 0:01:14.3]} 34. Rg6 {[%clk 0:01:04.9]} 34... Nf2+
{[%clk 0:00:58]} 35. Kg2 {[%clk 0:01:00]} 35... Nd3 {[%clk 0:00:58.9]} 36. Kf3
{[%clk 0:00:53.5]} 36... Nxb2 {[%clk 0:00:57]} 37. Ke2 {[%clk 0:00:34.2]} 37...
Nc4 {[%clk 0:00:55]} 38. Kd3 {[%clk 0:00:34.1]} 38... Re8 {[%clk 0:00:51.1]} 39.
R1g3 {[%clk 0:00:34.1]} 39... Rde7 {[%clk 0:00:43.8]} 40. Kd4 {[%clk 0:00:27.3]}
40... Nxe3 {[%clk 0:00:39.8]} 41. Nd6 {[%clk 0:00:22.6]} 41... Kh7 {[%clk
0:00:13.5]} 42. Nxe8 {[%clk 0:00:19.2]} 42... Nf5+ {[%clk 0:00:12.6]} 43. Kxd5
{[%clk 0:00:19.2]} 43... Nxg3 {[%clk 0:00:12.3]} 44. Rxg3 {[%clk 0:00:19.3]}
44... Rxe8 {[%clk 0:00:12.5]} 45. f5 {[%clk 0:00:17.1]} 45... Rf8 {[%clk
0:00:09.9]} 46. Ke6 {[%clk 0:00:16.8]} 46... Kg8 {[%clk 0:00:08.8]} 47. h4
{[%clk 0:00:16.3]} 47... Rf6+ {[%clk 0:00:08.8]} 48. Ke5 {[%clk 0:00:16.5]}
48... Rf7 {[%clk 0:00:09.2]} 49. h5 {[%clk 0:00:16.6]} 49... Rc7 {[%clk
0:00:09.3]} 50. Rd3 {[%clk 0:00:15.6]} 50... Kf7 {[%clk 0:00:09.1]} 51. Rg3
{[%clk 0:00:12.3]} 51... Re7+ {[%clk 0:00:09.1]} 52. Kf4 {[%clk 0:00:10.9]}
52... Rc7 {[%clk 0:00:09.5]} 53. Ke5 {[%clk 0:00:11]} 53... a6 {[%clk
0:00:08.4]} 54. Kd5 {[%clk 0:00:09.6]} 54... b5 {[%clk 0:00:06.9]} 55. Kd6
{[%clk 0:00:09.1]} 55... Rc2 {[%clk 0:00:04.2]} 56. Ke5 {[%clk 0:00:07.8]} 56...
a5 {[%clk 0:00:04]} 57. Rb3 {[%clk 0:00:06.9]} 57... Rc5+ {[%clk 0:00:02.7]} 58.
Kf4 {[%clk 0:00:06.3]} 58... Kf6 {[%clk 0:00:02.9]} 59. Rg3 {[%clk 0:00:04.5]}
59... Rxf5+ {[%clk 0:00:03]} 60. Ke4 {[%clk 0:00:05.4]} 60... Rc5 {[%clk
0:00:03.4]} 61. Rg6+ {[%clk 0:00:05.4]} 61... Kf7 {[%clk 0:00:03.9]} 62. Rb6
{[%clk 0:00:05.2]} 62... Rc4+ {[%clk 0:00:04.8]} 63. Kd5 {[%clk 0:00:05.3]}
63... Ra4 {[%clk 0:00:04.8]} 64. Rxb5 {[%clk 0:00:04.8]} 64... Rxa3 {[%clk
0:00:05.1]} 65. Rb7+ {[%clk 0:00:04.9]} 65... Kf6 {[%clk 0:00:05.4]} 66. Rb6+
{[%clk 0:00:05.1]} 66... Kg5 {[%clk 0:00:05.6]} 67. Rg6+ {[%clk 0:00:06]} 67...
Kxh5 {[%clk 0:00:05.7]} 68. Rxg7 {[%clk 0:00:06.9]} 68... Rb3 {[%clk 0:00:05.9]}
69. Kc5 {[%clk 0:00:07.1]} 69... a4 {[%clk 0:00:05.9]} 70. Kc4 {[%clk 0:00:08]}
70... Rb1 {[%clk 0:00:05.6]} 71. Ra7 {[%clk 0:00:07.7]} 71... Ra1 {[%clk
0:00:05.9]} 72. Kc3 {[%clk 0:00:07.4]} 72... Kh4 {[%clk 0:00:06.1]} 73. Kb2
{[%clk 0:00:07.7]} 73... Rg1 {[%clk 0:00:06.2]} 74. Rxa4+ {[%clk 0:00:07.5]}
74... Kh3 {[%clk 0:00:07.1]} 75. Kc2 {[%clk 0:00:07.8]} 75... h5 {[%clk
0:00:07.3]} 76. Kd2 {[%clk 0:00:08.1]} 76... h4 {[%clk 0:00:08.1]} 77. Ke2
{[%clk 0:00:08.5]} 77... Rg8 {[%clk 0:00:07.8]} 78. Kf2 {[%clk 0:00:08.7]} 78...
Rg3 {[%clk 0:00:06.4]} 79. Re4 {[%clk 0:00:08.4]} 79... Rg8 {[%clk 0:00:03]} 80.
Rd4 {[%clk 0:00:08.3]} 80... Ra8 {[%clk 0:00:02.4]} 81. Rd3+ {[%clk 0:00:07.4]}
81... Kh2 {[%clk 0:00:02.2]} 82. Rd2 {[%clk 0:00:08]} 82... h3 {[%clk 0:00:02]}
83. Kf3+ {[%clk 0:00:08.2]} 1-0